[Event "Late-Titled-Tuesday-Blitz-March-26-2024"]
[Site "Chess.com"]
[Date "2024.03.26"]
[Round "1"]
[White "DeArron_Fox"]
[Black "hansen"]
[Result "0-1"]
[WhiteElo "2505"]
[BlackElo "2960"]
[TimeControl "180+1"]
[EndTime "14:07:14 PDT"]
[Termination "hansen won by resignation"]

1. d4 {[%clk 0:03:00.9]} 1... Nf6 {[%clk 0:02:21.2]} 2. c4 {[%clk 0:02:59.6]}
2... e6 {[%clk 0:02:17.6]} 3. Nf3 {[%clk 0:02:57.6]} 3... b6 {[%clk 0:02:15.5]}
4. g3 {[%clk 0:02:57.3]} 4... Ba6 {[%clk 0:02:12.3]} 5. b3 {[%clk 0:02:56]} 5...
c6 {[%clk 0:02:09.5]} 6. Bg2 {[%clk 0:02:55.2]} 6... d5 {[%clk 0:02:09.8]} 7.
O-O {[%clk 0:02:43.6]} 7... Nbd7 {[%clk 0:01:54.9]} 8. Nbd2 {[%clk 0:02:35.7]}
8... Be7 {[%clk 0:01:53.6]} 9. Qc2 {[%clk 0:02:31]} 9... O-O {[%clk 0:01:53.2]}
10. e4 {[%clk 0:02:15.9]} 10... Rc8 {[%clk 0:01:52.4]} 11. Rd1 {[%clk
0:02:03.2]} 11... Bb7 {[%clk 0:01:31.5]} 12. e5 {[%clk 0:01:23.6]} 12... Ne8
{[%clk 0:01:31.4]} 13. Nf1 {[%clk 0:00:54.3]} 13... Nc7 {[%clk 0:01:29.7]} 14.
h4 {[%clk 0:00:32.9]} 14... c5 {[%clk 0:01:10.6]} 15. Ng5 {[%clk 0:00:21.1]}
15... Bxg5 {[%clk 0:01:10.7]} 16. Bxg5 {[%clk 0:00:20]} 16... Qe8 {[%clk
0:01:10.7]} 17. dxc5 {[%clk 0:00:11.8]} 17... Nxc5 {[%clk 0:01:06.1]} 18. Ne3
{[%clk 0:00:09]} 18... dxc4 {[%clk 0:01:05.3]} 19. Nxc4 {[%clk 0:00:04.3]} 19...
Bxg2 {[%clk 0:01:05.3]} 20. Kxg2 {[%clk 0:00:05.2]} 20... Qc6+ {[%clk
0:00:56.5]} 21. Kg1 {[%clk 0:00:05.5]} 21... Nd5 {[%clk 0:00:48.4]} 22. Nd6
{[%clk 0:00:03.6]} 22... Nd7 {[%clk 0:00:41.1]} 23. Qxc6 {[%clk 0:00:03.1]}
23... Rxc6 {[%clk 0:00:41.2]} 24. Rac1 {[%clk 0:00:03.6]} 24... Nxe5 {[%clk
0:00:37.4]} 25. f4 {[%clk 0:00:01.7]} 25... Rxd6 {[%clk 0:00:11.8]} 26. fxe5
{[%clk 0:00:01.8]} 26... Rd7 {[%clk 0:00:12.3]} 27. Rc6 {[%clk 0:00:02.2]} 27...
h6 {[%clk 0:00:10.4]} 28. Bc1 {[%clk 0:00:01.5]} 28... Rfd8 {[%clk 0:00:10.9]}
29. Ba3 {[%clk 0:00:01.8]} 29... Ne3 {[%clk 0:00:09.6]} 30. Rxd7 {[%clk
0:00:02.7]} 30... Rxd7 {[%clk 0:00:10.3]} 31. Bd6 {[%clk 0:00:02.9]} 31... h5
{[%clk 0:00:10.1]} 32. Kf2 {[%clk 0:00:03.1]} 32... Nf5 {[%clk 0:00:10.6]} 33.
Rc8+ {[%clk 0:00:03]} 33... Kh7 {[%clk 0:00:11]} 34. Rc6 {[%clk 0:00:03.1]}
34... Kg6 {[%clk 0:00:10.7]} 35. Kf3 {[%clk 0:00:01.9]} 35... Nd4+ {[%clk
0:00:11.1]} 36. Ke4 {[%clk 0:00:01.9]} 36... Nxc6 {[%clk 0:00:12]} 0-1

[Event "Late-Titled-Tuesday-Blitz-March-26-2024"]
[Site "Chess.com"]
[Date "2024.03.26"]
[Round "1"]
[White "MoldyTofu"]
[Black "ExtremeLearner"]
[Result "1-0"]
[WhiteElo "2057"]
[BlackElo "2535"]
[TimeControl "180+1"]
[EndTime "14:07:22 PDT"]
[Termination "MoldyTofu won by resignation"]

1. b3 {[%clk 0:02:59.4]} 1... Nf6 {[%clk 0:02:54]} 2. Bb2 {[%clk 0:03:00.3]}
2... g6 {[%clk 0:02:52.5]} 3. Nf3 {[%clk 0:03:00.5]} 3... Bg7 {[%clk 0:02:52]}
4. e3 {[%clk 0:02:59.7]} 4... O-O {[%clk 0:02:52.3]} 5. Be2 {[%clk 0:02:59.1]}
5... d5 {[%clk 0:02:52.9]} 6. d4 {[%clk 0:02:58.9]} 6... c6 {[%clk 0:02:51.1]}
7. O-O {[%clk 0:02:58.8]} 7... Nbd7 {[%clk 0:02:48.4]} 8. c4 {[%clk 0:02:58.2]}
8... Ne4 {[%clk 0:02:42.6]} 9. Nc3 {[%clk 0:02:55.8]} 9... Nxc3 {[%clk
0:02:41.5]} 10. Bxc3 {[%clk 0:02:55.5]} 10... Nf6 {[%clk 0:02:40.9]} 11. Qc2
{[%clk 0:02:48.6]} 11... Ne4 {[%clk 0:02:39.2]} 12. Bb2 {[%clk 0:02:48.1]} 12...
Bf5 {[%clk 0:02:38.1]} 13. Nh4 {[%clk 0:02:40.9]} 13... Be6 {[%clk 0:02:23.5]}
14. Bd3 {[%clk 0:02:40.5]} 14... Nf6 {[%clk 0:02:11.9]} 15. Nf3 {[%clk 0:02:38]}
15... a5 {[%clk 0:02:04.5]} 16. a4 {[%clk 0:02:35]} 16... Rc8 {[%clk 0:01:57.1]}
17. Ng5 {[%clk 0:02:31.5]} 17... Bd7 {[%clk 0:01:39]} 18. Qe2 {[%clk 0:02:25.8]}
18... h6 {[%clk 0:01:32.2]} 19. Nf3 {[%clk 0:02:25.3]} 19... Bg4 {[%clk
0:01:22.3]} 20. h3 {[%clk 0:02:24.8]} 20... Bxf3 {[%clk 0:01:07.6]} 21. Qxf3
{[%clk 0:02:25.7]} 21... e6 {[%clk 0:01:04.1]} 22. Rac1 {[%clk 0:02:19.3]} 22...
Re8 {[%clk 0:00:49.8]} 23. Qe2 {[%clk 0:02:17.6]} 23... Bf8 {[%clk 0:00:42.6]}
24. Bc3 {[%clk 0:02:16.5]} 24... Bb4 {[%clk 0:00:31.3]} 25. Bxb4 {[%clk
0:02:11]} 25... axb4 {[%clk 0:00:32.1]} 26. cxd5 {[%clk 0:02:11.5]} 26... Nxd5
{[%clk 0:00:28.2]} 27. Qg4 {[%clk 0:02:07.6]} 27... Qf6 {[%clk 0:00:24.9]} 28.
Rc4 {[%clk 0:02:01.5]} 28... h5 {[%clk 0:00:18.4]} 29. Qg3 {[%clk 0:01:48.7]}
29... Kg7 {[%clk 0:00:14.8]} 30. e4 {[%clk 0:01:40]} 30... Nc3 {[%clk
0:00:04.4]} 31. Rxb4 {[%clk 0:01:39.7]} 31... Rcd8 {[%clk 0:00:04.9]} 32. e5
{[%clk 0:01:31.4]} 32... Qe7 {[%clk 0:00:04.1]} 33. Rc4 {[%clk 0:01:25.9]} 33...
Nd5 {[%clk 0:00:04.8]} 34. Be4 {[%clk 0:01:23.4]} 34... Qa3 {[%clk 0:00:04.8]}
35. Bxd5 {[%clk 0:01:21.1]} 35... cxd5 {[%clk 0:00:05.7]} 36. Rc7 {[%clk
0:01:20.3]} 36... Re7 {[%clk 0:00:06.4]} 37. Rfc1 {[%clk 0:01:16.2]} 37... Rxc7
{[%clk 0:00:06.3]} 38. Rxc7 {[%clk 0:01:17.1]} 38... Qa1+ {[%clk 0:00:06.4]} 39.
Kh2 {[%clk 0:01:16]} 39... Qxd4 {[%clk 0:00:07]} 40. Rxb7 {[%clk 0:01:14.1]}
40... Rc8 {[%clk 0:00:04.2]} 41. a5 {[%clk 0:00:56.4]} 41... h4 {[%clk
0:00:04.7]} 42. Qe3 {[%clk 0:00:48.8]} 42... Qa1 {[%clk 0:00:04.9]} 43. Qf4
{[%clk 0:00:44]} 43... Rc1 {[%clk 0:00:04.5]} 44. Qxf7+ {[%clk 0:00:36.8]} 44...
Kh6 {[%clk 0:00:05]} 45. Qf4+ {[%clk 0:00:37.4]} 45... g5 {[%clk 0:00:05]} 46.
Qf6+ {[%clk 0:00:37.5]} 1-0

[Event "Late-Titled-Tuesday-Blitz-March-26-2024"]
[Site "Chess.com"]
[Date "2024.03.26"]
[Round "1"]
[White "djano"]
[Black "David_ATM"]
[Result "1-0"]
[WhiteElo "2671"]
[BlackElo "2363"]
[TimeControl "180+1"]
[EndTime "14:07:26 PDT"]
[Termination "djano won by resignation"]

1. e4 {[%clk 0:03:00.9]} 1... e5 {[%clk 0:02:59.9]} 2. d4 {[%clk 0:02:59.7]}
2... d6 {[%clk 0:02:56.5]} 3. Nf3 {[%clk 0:02:57.9]} 3... Nc6 {[%clk 0:02:56.9]}
4. Bc4 {[%clk 0:02:57.3]} 4... exd4 {[%clk 0:02:50.2]} 5. Nxd4 {[%clk
0:02:58.2]} 5... Nf6 {[%clk 0:02:47.2]} 6. Nc3 {[%clk 0:02:57.6]} 6... Be7
{[%clk 0:02:47.3]} 7. O-O {[%clk 0:02:55.6]} 7... O-O {[%clk 0:02:43.9]} 8. h3
{[%clk 0:02:55.4]} 8... Nxd4 {[%clk 0:02:28.3]} 9. Qxd4 {[%clk 0:02:56.3]} 9...
Be6 {[%clk 0:02:28.5]} 10. Bxe6 {[%clk 0:02:47.6]} 10... fxe6 {[%clk 0:02:29.4]}
11. e5 {[%clk 0:02:48.2]} 11... Nd7 {[%clk 0:01:59.5]} 12. exd6 {[%clk
0:02:40.1]} 12... Bxd6 {[%clk 0:01:56.3]} 13. Qc4 {[%clk 0:02:26.9]} 13... Qe7
{[%clk 0:01:08.6]} 14. Be3 {[%clk 0:02:25.8]} 14... Qf7 {[%clk 0:01:07.6]} 15.
Rad1 {[%clk 0:02:17.7]} 15... Nb6 {[%clk 0:01:06.5]} 16. Qe4 {[%clk 0:02:14.7]}
16... Rab8 {[%clk 0:01:04.4]} 17. Nb5 {[%clk 0:02:12.4]} 17... Nd5 {[%clk
0:00:44.2]} 18. Bxa7 {[%clk 0:01:57.4]} 18... Ra8 {[%clk 0:00:44.4]} 19. a3
{[%clk 0:01:54.3]} 19... Qf5 {[%clk 0:00:39.3]} 20. Nxd6 {[%clk 0:01:50.3]}
20... cxd6 {[%clk 0:00:38.5]} 21. Qxf5 {[%clk 0:01:50.5]} 21... Rxf5 {[%clk
0:00:37.9]} 22. Bd4 {[%clk 0:01:49.7]} 22... Nf4 {[%clk 0:00:34.1]} 23. Rfe1
{[%clk 0:01:46.9]} 23... e5 {[%clk 0:00:18]} 24. Be3 {[%clk 0:01:46.7]} 24...
Ra6 {[%clk 0:00:14.2]} 25. Kh2 {[%clk 0:01:43.7]} 25... h6 {[%clk 0:00:12.7]}
26. g3 {[%clk 0:01:40.3]} 26... Ne6 {[%clk 0:00:13.1]} 27. Rd5 {[%clk
0:01:39.8]} 27... Nc7 {[%clk 0:00:12.9]} 28. Rd3 {[%clk 0:01:39]} 28... Rf6
{[%clk 0:00:12.4]} 29. Red1 {[%clk 0:01:36.5]} 29... Kf7 {[%clk 0:00:12.9]} 30.
Rc3 {[%clk 0:01:35.3]} 30... Rc6 {[%clk 0:00:13.2]} 31. Rxc6 {[%clk 0:01:31.5]}
31... bxc6 {[%clk 0:00:14.1]} 32. a4 {[%clk 0:01:32.2]} 32... Ke7 {[%clk
0:00:14.5]} 33. a5 {[%clk 0:01:32.2]} 33... Rf8 {[%clk 0:00:14.9]} 34. c4 {[%clk
0:01:31.6]} 34... Ra8 {[%clk 0:00:15.3]} 35. Bb6 {[%clk 0:01:31.1]} 35... Ne6
{[%clk 0:00:14.2]} 36. b4 {[%clk 0:01:31.4]} 36... Kd7 {[%clk 0:00:12.5]} 37. h4
{[%clk 0:01:29.6]} 37... h5 {[%clk 0:00:12.3]} 38. Kg2 {[%clk 0:01:26]} 38... g6
{[%clk 0:00:12.8]} 39. Ra1 {[%clk 0:01:24.5]} 39... d5 {[%clk 0:00:05.4]} 40.
cxd5 {[%clk 0:01:21.8]} 40... cxd5 {[%clk 0:00:06.3]} 41. a6 {[%clk 0:01:22.3]}
41... Kc6 {[%clk 0:00:06.5]} 42. Be3 {[%clk 0:01:17.1]} 42... d4 {[%clk
0:00:06.9]} 43. Bd2 {[%clk 0:01:17.7]} 43... Nc7 {[%clk 0:00:07.2]} 44. a7
{[%clk 0:01:10.2]} 44... Nb5 {[%clk 0:00:05.4]} 45. Ra6+ {[%clk 0:01:09.8]}
45... Kd5 {[%clk 0:00:05.6]} 46. Rxg6 {[%clk 0:01:08.4]} 46... Rxa7 {[%clk
0:00:05.4]} 47. Rg5 {[%clk 0:01:06.6]} 47... Ra2 {[%clk 0:00:06.1]} 48. Bf4
{[%clk 0:01:07.1]} 48... d3 {[%clk 0:00:04.9]} 49. Bxe5 {[%clk 0:01:07.6]} 49...
d2 {[%clk 0:00:04.4]} 50. Bf4+ {[%clk 0:01:07.8]} 50... Kc4 {[%clk 0:00:04.8]}
51. Bxd2 {[%clk 0:01:05.4]} 51... Rxd2 {[%clk 0:00:05.7]} 52. Rxh5 {[%clk
0:01:05.7]} 52... Nd4 {[%clk 0:00:06.1]} 53. Rc5+ {[%clk 0:01:02.5]} 53... Kxb4
{[%clk 0:00:06.4]} 54. Rc8 {[%clk 0:01:03.4]} 54... Kb5 {[%clk 0:00:06.3]} 55.
h5 {[%clk 0:01:03.7]} 55... Nc6 {[%clk 0:00:06.9]} 56. h6 {[%clk 0:01:01.8]}
56... Rd6 {[%clk 0:00:07.5]} 57. h7 {[%clk 0:01:02.1]} 57... Rh6 {[%clk
0:00:05.5]} 58. h8=Q {[%clk 0:01:02]} 58... Rxh8 {[%clk 0:00:06.2]} 59. Rxh8
{[%clk 0:01:02.4]} 59... Kc5 {[%clk 0:00:06.7]} 60. Rc8 {[%clk 0:01:02]} 60...
Kd6 {[%clk 0:00:07.3]} 61. Rxc6+ {[%clk 0:01:02.6]} 61... Kxc6 {[%clk
0:00:08.2]} 62. g4 {[%clk 0:01:02.6]} 62... Kd6 {[%clk 0:00:09.1]} 63. Kg3
{[%clk 0:01:03.4]} 63... Ke6 {[%clk 0:00:10]} 64. f4 {[%clk 0:01:04.2]} 64...
Kf7 {[%clk 0:00:10.9]} 65. g5 {[%clk 0:01:04.6]} 65... Kg8 {[%clk 0:00:11.8]}
66. Kg4 {[%clk 0:01:05.4]} 66... Kf7 {[%clk 0:00:12.7]} 67. f5 {[%clk
0:01:06.1]} 67... Kg7 {[%clk 0:00:13.6]} 68. f6+ {[%clk 0:01:06.1]} 68... Kg8
{[%clk 0:00:14.5]} 69. g6 {[%clk 0:01:06.3]} 69... Kf8 {[%clk 0:00:15.4]} 70.
Kf5 {[%clk 0:01:06.8]} 70... Kg8 {[%clk 0:00:16.3]} 71. Ke6 {[%clk 0:01:07]}
71... Kf8 {[%clk 0:00:17.2]} 72. g7+ {[%clk 0:01:06]} 1-0

[Event "Late-Titled-Tuesday-Blitz-March-26-2024"]
[Site "Chess.com"]
[Date "2024.03.26"]
[Round "1"]
[White "ahmedkandiliii"]
[Black "KuzubovYuriy"]
[Result "1-0"]
[WhiteElo "2514"]
[BlackElo "2917"]
[TimeControl "180+1"]
[EndTime "14:07:27 PDT"]
[Termination "ahmedkandiliii won on time"]

1. e4 {[%clk 0:03:00.7]} 1... g6 {[%clk 0:02:59]} 2. d4 {[%clk 0:02:58.8]} 2...
Bg7 {[%clk 0:02:59.1]} 3. Nc3 {[%clk 0:02:56.6]} 3... d6 {[%clk 0:02:55]} 4. Be3
{[%clk 0:02:54.6]} 4... a6 {[%clk 0:02:53.3]} 5. a4 {[%clk 0:02:48.2]} 5... Nd7
{[%clk 0:02:45.1]} 6. Qd2 {[%clk 0:02:45.3]} 6... e5 {[%clk 0:02:40]} 7. Nge2
{[%clk 0:02:33.5]} 7... Ngf6 {[%clk 0:02:30.7]} 8. f3 {[%clk 0:02:31.9]} 8...
O-O {[%clk 0:02:25.3]} 9. h4 {[%clk 0:02:29.3]} 9... d5 {[%clk 0:02:25.5]} 10.
exd5 {[%clk 0:02:20.8]} 10... Nb6 {[%clk 0:02:14.6]} 11. dxe5 {[%clk 0:02:18.3]}
11... Nc4 {[%clk 0:02:11.1]} 12. exf6 {[%clk 0:02:06]} 12... Nxd2 {[%clk
0:02:09.4]} 13. fxg7 {[%clk 0:02:06.1]} 13... Nxf3+ {[%clk 0:02:02.1]} 14. gxf3
{[%clk 0:02:05.5]} 14... Re8 {[%clk 0:02:02.2]} 15. Bd4 {[%clk 0:01:52.3]} 15...
c5 {[%clk 0:01:15.8]} 16. Bxc5 {[%clk 0:01:50.4]} 16... Qc7 {[%clk 0:01:15.2]}
17. Bf2 {[%clk 0:01:36.2]} 17... Qf4 {[%clk 0:01:01.4]} 18. Bg2 {[%clk
0:01:19.4]} 18... Bf5 {[%clk 0:00:23.1]} 19. Ne4 {[%clk 0:01:14.5]} 19... Qc7
{[%clk 0:00:15.4]} 20. Bd4 {[%clk 0:00:54.4]} 20... Bxe4 {[%clk 0:00:11.3]} 21.
fxe4 {[%clk 0:00:55.3]} 21... Qxc2 {[%clk 0:00:10.3]} 22. h5 {[%clk 0:00:48]}
22... Rxe4 {[%clk 0:00:06.4]} 23. Bxe4 {[%clk 0:00:31.7]} 23... Qxe4 {[%clk
0:00:07.3]} 24. Rh2 {[%clk 0:00:17.1]} 24... Qxd5 {[%clk 0:00:07.2]} 25. hxg6
{[%clk 0:00:16.4]} 25... fxg6 {[%clk 0:00:08.1]} 26. O-O-O {[%clk 0:00:15.9]}
26... b5 {[%clk 0:00:06]} 27. Rdh1 {[%clk 0:00:11.5]} 27... h5 {[%clk
0:00:04.5]} 28. Rf1 {[%clk 0:00:09.2]} 28... b4 {[%clk 0:00:03.1]} 29. Rhf2
{[%clk 0:00:08.9]} 29... Rc8+ {[%clk 0:00:02.1]} 30. Kb1 {[%clk 0:00:09.1]}
30... Qe4+ {[%clk 0:00:01.9]} 31. Ka1 {[%clk 0:00:08.6]} 1-0

[Event "Late-Titled-Tuesday-Blitz-March-26-2024"]
[Site "Chess.com"]
[Date "2024.03.26"]
[Round "1"]
[White "randomo"]
[Black "Fh2411"]
[Result "1-0"]
[WhiteElo "2264"]
[BlackElo "2590"]
[TimeControl "180+1"]
[EndTime "14:07:28 PDT"]
[Termination "randomo won on time"]

1. e4 {[%clk 0:03:00.9]} 1... c5 {[%clk 0:02:55.6]} 2. c3 {[%clk 0:03:01]} 2...
e6 {[%clk 0:02:52]} 3. d4 {[%clk 0:03:00.7]} 3... cxd4 {[%clk 0:02:51.7]} 4.
cxd4 {[%clk 0:03:01.6]} 4... d5 {[%clk 0:02:52.4]} 5. exd5 {[%clk 0:03:02.5]}
5... exd5 {[%clk 0:02:52.3]} 6. Nc3 {[%clk 0:03:03.1]} 6... Nf6 {[%clk
0:02:50.1]} 7. Bg5 {[%clk 0:03:02.4]} 7... Be7 {[%clk 0:02:49.7]} 8. Be2 {[%clk
0:03:02.6]} 8... O-O {[%clk 0:02:50.2]} 9. Bf3 {[%clk 0:03:02.3]} 9... Be6
{[%clk 0:02:40.3]} 10. Nge2 {[%clk 0:03:02.2]} 10... h6 {[%clk 0:02:39.9]} 11.
Bxf6 {[%clk 0:02:58.5]} 11... Bxf6 {[%clk 0:02:39.5]} 12. Nf4 {[%clk 0:02:57.9]}
12... Nc6 {[%clk 0:02:37.1]} 13. Nfxd5 {[%clk 0:02:53.6]} 13... Bxd4 {[%clk
0:02:26.4]} 14. O-O {[%clk 0:02:52.1]} 14... Qg5 {[%clk 0:01:35.3]} 15. Nc7
{[%clk 0:02:43]} 15... Rad8 {[%clk 0:01:31.7]} 16. Nxe6 {[%clk 0:02:41.9]} 16...
fxe6 {[%clk 0:01:31.1]} 17. Ne4 {[%clk 0:02:38.5]} 17... Qg6 {[%clk 0:01:25.2]}
18. Qe2 {[%clk 0:02:32.7]} 18... Be5 {[%clk 0:01:06.2]} 19. Bh5 {[%clk
0:02:21.7]} 19... Qf5 {[%clk 0:01:00.4]} 20. Ng3 {[%clk 0:02:10.6]} 20... Qf4
{[%clk 0:00:53.6]} 21. Rae1 {[%clk 0:01:59.1]} 21... Rd2 {[%clk 0:00:49.1]} 22.
Qf3 {[%clk 0:01:36.8]} 22... Rxb2 {[%clk 0:00:44.7]} 23. Qxf4 {[%clk 0:01:34]}
23... Rxf4 {[%clk 0:00:42.9]} 24. Bf3 {[%clk 0:01:33.5]} 24... Bd4 {[%clk
0:00:37]} 25. Re2 {[%clk 0:01:26.9]} 25... Ne5 {[%clk 0:00:33.1]} 26. Bh5 {[%clk
0:01:20.8]} 26... g6 {[%clk 0:00:19.6]} 27. Rxb2 {[%clk 0:01:13.4]} 27... Bxb2
{[%clk 0:00:20.5]} 28. Bd1 {[%clk 0:01:12.9]} 28... h5 {[%clk 0:00:14.9]} 29.
Bb3 {[%clk 0:01:12]} 29... Kf7 {[%clk 0:00:15.5]} 30. Ne2 {[%clk 0:01:11.6]}
30... Rb4 {[%clk 0:00:14.3]} 31. Nf4 {[%clk 0:01:08.1]} 31... Rb6 {[%clk
0:00:13.2]} 32. Re1 {[%clk 0:01:07.5]} 32... Bd4 {[%clk 0:00:13.1]} 33. Rd1
{[%clk 0:01:00.4]} 33... Bc3 {[%clk 0:00:08.1]} 34. Nd3 {[%clk 0:00:58.4]} 34...
Nxd3 {[%clk 0:00:06.7]} 35. Rxd3 {[%clk 0:00:59.3]} 35... Be5 {[%clk 0:00:06.6]}
36. Re3 {[%clk 0:00:57.3]} 36... Kf6 {[%clk 0:00:06.8]} 37. g3 {[%clk
0:00:55.7]} 37... Rd6 {[%clk 0:00:05.5]} 38. Kg2 {[%clk 0:00:55.2]} 38... Rd2
{[%clk 0:00:06]} 39. Kf1 {[%clk 0:00:49.8]} 39... b5 {[%clk 0:00:04.3]} 40. f4
{[%clk 0:00:48]} 40... Bd4 {[%clk 0:00:03.1]} 41. Rxe6+ {[%clk 0:00:48.1]} 41...
Kf5 {[%clk 0:00:03.7]} 42. Rd6 {[%clk 0:00:46]} 42... a5 {[%clk 0:00:04]} 43.
Bf7 {[%clk 0:00:44.4]} 43... g5 {[%clk 0:00:03.5]} 44. Rd5+ {[%clk 0:00:39.1]}
44... Kf6 {[%clk 0:00:03.7]} 45. Bxh5 {[%clk 0:00:39.3]} 45... gxf4 {[%clk
0:00:04.4]} 46. gxf4 {[%clk 0:00:38]} 46... a4 {[%clk 0:00:03.4]} 47. Be8 {[%clk
0:00:37]} 47... Be3 {[%clk 0:00:01.5]} 48. a3 {[%clk 0:00:32]} 1-0

[Event "Late-Titled-Tuesday-Blitz-March-26-2024"]
[Site "Chess.com"]
[Date "2024.03.26"]
[Round "1"]
[White "Juicy_Fork"]
[Black "Aural1011"]
[Result "1-0"]
[WhiteElo "2540"]
[BlackElo "1796"]
[TimeControl "180+1"]
[EndTime "14:07:30 PDT"]
[Termination "Juicy_Fork won by checkmate"]

1. e4 {[%clk 0:02:57.2]} 1... c5 {[%clk 0:03:00.1]} 2. Nf3 {[%clk 0:02:55]} 2...
d6 {[%clk 0:03:00.4]} 3. d4 {[%clk 0:02:53.3]} 3... cxd4 {[%clk 0:03:00.8]} 4.
Nxd4 {[%clk 0:02:54.2]} 4... Nf6 {[%clk 0:03:01.1]} 5. Nc3 {[%clk 0:02:53.5]}
5... a6 {[%clk 0:03:01.5]} 6. Bd3 {[%clk 0:02:49.9]} 6... e6 {[%clk 0:03:01]} 7.
f4 {[%clk 0:02:49.4]} 7... Qc7 {[%clk 0:02:58.4]} 8. Qe2 {[%clk 0:02:49]} 8...
Nbd7 {[%clk 0:02:55.7]} 9. g4 {[%clk 0:02:44.2]} 9... h6 {[%clk 0:02:48.2]} 10.
Bd2 {[%clk 0:02:40.4]} 10... b5 {[%clk 0:02:47.6]} 11. a3 {[%clk 0:02:39.4]}
11... Bb7 {[%clk 0:02:47.3]} 12. O-O-O {[%clk 0:02:37.5]} 12... Rc8 {[%clk
0:02:42.9]} 13. Kb1 {[%clk 0:02:36.4]} 13... Nc5 {[%clk 0:02:37.7]} 14. h4
{[%clk 0:02:28.5]} 14... d5 {[%clk 0:02:31.1]} 15. e5 {[%clk 0:02:11.2]} 15...
Nfe4 {[%clk 0:02:31.1]} 16. Bxe4 {[%clk 0:02:04.5]} 16... Nxe4 {[%clk
0:02:31.4]} 17. Nxe4 {[%clk 0:02:04.3]} 17... dxe4 {[%clk 0:02:32.3]} 18. Be3
{[%clk 0:02:04.7]} 18... Bc5 {[%clk 0:02:13.7]} 19. g5 {[%clk 0:02:00]} 19...
hxg5 {[%clk 0:02:12.4]} 20. hxg5 {[%clk 0:01:59.8]} 20... Rxh1 {[%clk
0:02:09.3]} 21. Rxh1 {[%clk 0:02:00.7]} 21... Qb6 {[%clk 0:01:47]} 22. Qf2
{[%clk 0:01:49.1]} 22... b4 {[%clk 0:01:17.2]} 23. axb4 {[%clk 0:01:24.5]} 23...
Qxb4 {[%clk 0:01:10.2]} 24. Rh8+ {[%clk 0:01:23.6]} 24... Kd7 {[%clk 0:01:01.7]}
25. Rxc8 {[%clk 0:01:18.9]} 25... Kxc8 {[%clk 0:01:02.1]} 26. f5 {[%clk
0:01:17.7]} 26... Bd5 {[%clk 0:00:56.4]} 27. fxe6 {[%clk 0:01:08.1]} 27... fxe6
{[%clk 0:00:56.4]} 28. Nf5 {[%clk 0:00:39.6]} 28... Bxe3 {[%clk 0:00:31.8]} 29.
Nxe3 {[%clk 0:00:40.5]} 29... Qe7 {[%clk 0:00:24.1]} 30. g6 {[%clk 0:00:36.9]}
30... Qg5 {[%clk 0:00:17.9]} 31. Qf8+ {[%clk 0:00:35.3]} 31... Kd7 {[%clk
0:00:15.5]} 32. Nxd5 {[%clk 0:00:27.9]} 32... exd5 {[%clk 0:00:16.4]} 33. Qxg7+
{[%clk 0:00:27.9]} 33... Ke6 {[%clk 0:00:15.9]} 34. Qf7+ {[%clk 0:00:23.2]}
34... Kxe5 {[%clk 0:00:13.8]} 35. g7 {[%clk 0:00:23.7]} 35... Qg1+ {[%clk
0:00:13.2]} 36. Ka2 {[%clk 0:00:24.1]} 36... Qc5 {[%clk 0:00:09.6]} 37. Qe8+
{[%clk 0:00:23.4]} 37... Kd4 {[%clk 0:00:08.4]} 38. c3+ {[%clk 0:00:21.8]} 38...
Kd3 {[%clk 0:00:07.6]} 39. g8=Q {[%clk 0:00:20.4]} 39... Qc4+ {[%clk 0:00:03.8]}
40. Kb1 {[%clk 0:00:20.6]} 40... Qb3 {[%clk 0:00:03.9]} 41. Qg3+ {[%clk
0:00:19.3]} 41... Kc4 {[%clk 0:00:02.1]} 42. Qc6# {[%clk 0:00:19.4]} 1-0

[Event "Late-Titled-Tuesday-Blitz-March-26-2024"]
[Site "Chess.com"]
[Date "2024.03.26"]
[Round "1"]
[White "YegoryoCh"]
[Black "AungTZ"]
[Result "1-0"]
[WhiteElo "2548"]
[BlackElo "2029"]
[TimeControl "180+1"]
[EndTime "14:07:31 PDT"]
[Termination "YegoryoCh won by resignation"]

1. e4 {[%clk 0:02:59.7]} 1... c5 {[%clk 0:02:58.8]} 2. Nf3 {[%clk 0:02:59.8]}
2... Nc6 {[%clk 0:02:58.9]} 3. Bb5 {[%clk 0:02:59.8]} 3... e6 {[%clk 0:02:58.5]}
4. Bxc6 {[%clk 0:02:59.8]} 4... dxc6 {[%clk 0:02:58.7]} 5. O-O {[%clk
0:02:58.6]} 5... Ne7 {[%clk 0:02:58.7]} 6. b3 {[%clk 0:02:56.9]} 6... Ng6 {[%clk
0:02:57.9]} 7. Bb2 {[%clk 0:02:56.1]} 7... Qc7 {[%clk 0:02:51.1]} 8. d3 {[%clk
0:02:55.1]} 8... e5 {[%clk 0:02:50.6]} 9. Nbd2 {[%clk 0:02:54.1]} 9... Be7
{[%clk 0:02:39.6]} 10. Nc4 {[%clk 0:02:53]} 10... Bf6 {[%clk 0:02:39.6]} 11. a4
{[%clk 0:02:52.9]} 11... O-O {[%clk 0:02:38.3]} 12. a5 {[%clk 0:02:53.2]} 12...
Be6 {[%clk 0:02:36.3]} 13. Qd2 {[%clk 0:02:35.9]} 13... b5 {[%clk 0:02:34.7]}
14. Ne3 {[%clk 0:02:32.6]} 14... Rad8 {[%clk 0:02:23.1]} 15. Ba3 {[%clk
0:02:26.7]} 15... Be7 {[%clk 0:01:59.9]} 16. Rfd1 {[%clk 0:02:02.3]} 16... c4
{[%clk 0:01:57.5]} 17. Bxe7 {[%clk 0:02:01.8]} 17... Qxe7 {[%clk 0:01:57.3]} 18.
bxc4 {[%clk 0:02:02.5]} 18... bxc4 {[%clk 0:01:57.2]} 19. Qc3 {[%clk 0:02:03]}
19... cxd3 {[%clk 0:01:52.3]} 20. cxd3 {[%clk 0:02:03.9]} 20... c5 {[%clk
0:00:47.5]} 21. Nxe5 {[%clk 0:01:57.6]} 21... Qf6 {[%clk 0:00:47]} 22. f4 {[%clk
0:01:45.2]} 22... Qxf4 {[%clk 0:00:40.1]} 23. N3c4 {[%clk 0:01:41.5]} 23... Bxc4
{[%clk 0:00:33.5]} 24. Nxc4 {[%clk 0:01:42.4]} 24... Qg5 {[%clk 0:00:25.3]} 25.
Ra2 {[%clk 0:01:34]} 25... f5 {[%clk 0:00:18.7]} 26. e5 {[%clk 0:01:31.1]} 26...
f4 {[%clk 0:00:18.7]} 27. Qb3 {[%clk 0:00:47.1]} 27... Kh8 {[%clk 0:00:17.1]}
28. e6 {[%clk 0:00:46.7]} 28... f3 {[%clk 0:00:16]} 29. g3 {[%clk 0:00:47.3]}
29... Qg4 {[%clk 0:00:12.7]} 30. Re1 {[%clk 0:00:18.7]} 30... Rfe8 {[%clk
0:00:12.1]} 31. Na3 {[%clk 0:00:13.9]} 31... Qd4+ {[%clk 0:00:09.8]} 32. Rf2
{[%clk 0:00:14.6]} 32... Qxd3 {[%clk 0:00:09.6]} 33. Qxd3 {[%clk 0:00:15.4]}
33... Rxd3 {[%clk 0:00:09.5]} 34. Nb5 {[%clk 0:00:16.3]} 34... Rd6 {[%clk
0:00:09.1]} 35. Nxd6 {[%clk 0:00:16]} 35... Re7 {[%clk 0:00:08.5]} 36. Nf7+
{[%clk 0:00:16.2]} 36... Kg8 {[%clk 0:00:08.3]} 37. Rd2 {[%clk 0:00:16.9]} 37...
h6 {[%clk 0:00:08.3]} 38. Rd7 {[%clk 0:00:14.1]} 38... Nf8 {[%clk 0:00:09]} 39.
Rxe7 {[%clk 0:00:14.2]} 39... Nxe6 {[%clk 0:00:09.1]} 40. R7xe6 {[%clk
0:00:14.5]} 40... h5 {[%clk 0:00:09.6]} 41. Re7 {[%clk 0:00:15.4]} 1-0